bitfinex-derivatives/quotes_SOLF0:USTF0_20250624
["timestamp","ask_amount","ask_price","bid_price","bid_amount"]
[1750756167389,20.84,144.0,143.75,1.20967742]
[1750756168394,20.84,144.03,143.75,1.20967742]
[1750756169693,20.84,144.02,143.75,1.20967742]
[1750756170992,12.34123418,144.04,143.75,1.20967742]
[1750756170993,20.84,144.03,143.75,1.20967742]
[1750756173599,25.86836142,144.03,143.75,1.20967742]
[1750756174097,20.84,144.01,143.75,1.20967742]
[1750756174500,20.84,143.99,143.75,1.20967742]
[1750756175384,20.84,144.03,143.75,1.20967742]
[1750756175796,28.40321002,144.04,143.75,1.20967742]
[1750756177600,20.84,144.02,143.75,1.20967742]
[1750756178599,20.84,144.03,143.75,1.20967742]
[1750756179190,20.84,144.01,143.75,1.20967742]
[1750756180089,25.89192839,144.0,143.75,1.20967742]
[1750756180289,25.89192839,143.99,143.75,1.20967742]
[1750756180588,25.89192839,143.98,143.75,1.20967742]
[1750756180788,20.84,143.98,143.75,1.20967742]
[1750756181690,5.06672703,143.97,143.75,1.20967742]
[1750756181996,5.06672703,143.96,143.75,1.20967742]
[1750756182300,5.06672703,143.95,143.75,1.20967742]
[1750756182487,20.84,143.99,143.75,1.20967742]
[1750756182692,25.90672703,143.98,143.75,1.20967742]
[1750756182892,5.06672703,143.97,143.75,1.20967742]
[1750756183089,5.06672703,143.96,143.75,1.20967742]
[1750756183291,5.06672703,143.95,143.75,9.77358155]
[1750756183492,5.06672703,143.94,143.75,9.77358155]
[1750756183690,5.06672703,143.93,143.75,9.77358155]
[1750756183896,5.10560686,143.92,143.75,1.20967742]
[1750756184104,5.10560686,143.91,143.75,1.20967742]
[1750756184299,27.24172654,143.97,143.76,8.56390413]
[1750756184495,5.10594796,143.96,143.77,10.77680413]
[1750756184795,5.10594796,143.95,143.77,10.77680413]
[1750756184995,5.10594796,143.94,143.77,10.77680413]
[1750756185198,5.10594796,143.93,143.77,10.77680413]
[1750756185391,5.10594796,143.92,143.77,10.77680413]
[1750756185699,23.3950002,143.97,143.77,10.77680413]
[1750756185998,7.6651987,143.96,143.77,10.77680413]
[1750756186195,7.6651987,143.95,143.77,10.77680413]
[1750756186399,7.6651987,143.94,143.77,10.77680413]
[1750756186600,6.40172654,143.98,143.77,10.77680413]
[1750756186601,7.6651987,143.93,143.77,10.77680413]
[1750756186796,5.1101985,143.92,143.79,8.56390413]
[1750756186991,5.1101985,143.91,143.8,2.2191]
[1750756187192,2.56916036,143.95,143.8,2.2191]
[1750756187492,7.70308912,143.94,143.8,2.2191]
[1750756187692,5.13392876,143.94,143.8,10.78300413]
[1750756187896,27.24172654,143.98,143.8,10.78300413]
[1750756188094,20.84,143.98,143.8,10.78300413]
[1750756188499,27.24172654,143.98,143.81,8.56390413]
[1750756188909,27.24172654,143.98,143.82,8.56390413]
[1750756188910,20.84,143.98,143.82,8.56390413]
[1750756189198,20.84,143.99,143.82,8.56390413]
[1750756189602,27.24172654,143.99,143.83,8.56390413]
[1750756190398,20.84,143.99,143.83,8.56390413]
[1750756190595,27.24172654,143.99,143.83,8.56390413]
[1750756191702,27.24172654,143.99,143.84,8.56390413]
[1750756192801,6.40172654,143.99,143.85,8.56390413]
[1750756193794,6.40172654,143.99,143.86,8.56390413]
[1750756194405,6.40172654,144.0,143.86,8.56390413]
[1750756194800,6.40172654,144.01,143.87,8.56390413]
[1750756195501,6.40172654,144.01,143.88,8.56390413]
[1750756195714,6.40172654,144.02,143.88,8.56390413]
[1750756196005,27.24172654,144.02,143.88,8.56390413]
[1750756196202,27.24172654,144.02,143.89,8.56390413]
[1750756196409,20.84,144.02,143.89,8.56390413]
[1750756197208,27.24172654,144.01,143.87,8.56390413]
[1750756197414,20.84,144.01,143.88,8.56390413]
[1750756198212,6.40172654,144.02,143.88,8.56390413]
[1750756198512,20.84,144.03,143.89,8.56390413]
[1750756199911,20.84,144.04,143.9,8.56390413]
[1750756200311,6.40172654,144.05,143.91,8.56390413]
[1750756201007,20.84,144.04,143.91,8.56390413]
[1750756201204,7.73640569,144.03,143.91,8.56390413]
[1750756201404,2.58890726,144.02,143.91,8.56390413]
[1750756201607,5.14749843,144.03,143.91,8.56390413]
[1750756201912,2.63377387,144.02,143.91,8.56390413]
[1750756202105,30.90567627,144.04,143.91,8.56390413]
[1750756202310,7.5517018,144.03,143.91,8.56390413]
[1750756202506,2.63352396,144.02,143.91,8.56390413]
[1750756202706,2.63352396,144.02,143.9,8.56390413]
[1750756202909,2.63352396,144.02,143.91,8.56390413]
[1750756203319,2.63352396,144.02,143.9,8.56390413]
[1750756203723,2.63240273,144.01,143.89,8.56390413]
[1750756203920,20.84,144.02,143.88,8.56390413]
[1750756204127,33.61639769,144.01,143.88,8.56390413]
[1750756204330,2.63691027,144.0,143.88,8.56390413]
[1750756204526,20.84,144.01,143.88,8.56390413]
[1750756204726,2.63528635,144.0,143.88,8.56390413]
[1750756204928,2.63451031,144.0,143.88,8.56390413]
[1750756205123,4.99198899,144.01,143.88,8.56390413]
[1750756205322,33.61368635,144.0,143.86,10.78510413]
[1750756205521,2.63419893,143.99,143.86,10.78510413]
[1750756205828,2.63419893,143.98,143.86,8.56390413]
[1750756206025,2.63419893,143.99,143.86,8.56390413]
[1750756206226,2.63419893,143.98,143.86,8.56390413]
[1750756206426,2.63419893,143.99,143.86,8.56390413]
[1750756206722,20.84,144.0,143.86,8.56390413]
[1750756206723,2.63419893,143.98,143.86,8.56390413]
[1750756206921,2.63419893,143.99,143.87,8.56390413]
[1750756207527,2.63419893,144.0,143.87,8.56390413]
[1750756207929,2.63419893,144.0,143.89,8.56390413]
[1750756208124,2.63419893,144.01,143.88,8.56390413]
[1750756208326,2.63419893,144.02,143.89,8.56390413]
[1750756208629,2.63419893,144.01,143.89,8.56390413]
[1750756208827,2.63419893,144.03,143.9,8.56390413]
[1750756209029,2.63419893,144.02,143.9,8.56390413]
[1750756209218,2.63419893,144.03,143.91,10.80790413]
[1750756209423,2.63557965,144.04,143.91,10.80790413]
[1750756209625,2.63577283,144.04,143.92,8.56390413]
[1750756209828,2.63577283,144.05,143.92,8.56390413]
[1750756210027,2.63577283,144.04,143.92,8.56390413]
[1750756210330,2.63577283,144.05,143.92,8.56390413]
[1750756210533,2.63577283,144.06,143.92,8.56390413]
[1750756210728,2.63577283,144.05,143.92,8.56390413]
[1750756211026,2.63577283,144.04,143.91,10.80790413]
[1750756211228,2.63577283,144.05,143.91,10.80790413]
[1750756211531,2.63577283,144.04,143.91,10.80790413]
[1750756211728,7.61943451,144.05,143.91,10.80790413]
[1750756211923,2.63577283,144.04,143.92,8.56390413]
[1750756212120,2.63577283,144.05,143.92,8.56390413]
[1750756212632,2.6314073,144.04,143.92,8.56390413]
[1750756212827,2.6314073,144.05,143.92,8.56390413]
[1750756213036,2.63035134,144.04,143.91,10.80790413]
[1750756213233,2.63035134,144.05,143.91,10.80790413]
[1750756213432,2.63035134,144.04,143.91,10.80790413]
[1750756213628,2.63035134,144.05,143.91,8.56390413]
[1750756213932,40.03416393,144.04,143.87,8.56390413]
[1750756214132,20.84,144.02,143.87,8.56390413]
[1750756214333,33.63243739,144.01,143.87,8.56390413]
[1750756214635,7.61167552,144.0,143.86,8.56390413]
[1750756214833,2.63060119,143.99,143.86,8.56390413]
[1750756215037,23.47060119,143.98,143.85,8.56390413]
[1750756215235,2.63060119,143.97,143.85,8.56390413]
[1750756215835,2.63060119,143.96,143.84,2.4049]
[1750756216531,4.99707019,143.97,143.84,2.4049]
[1750756216735,2.6376676,143.96,143.84,2.4049]
[1750756216939,2.63768124,143.96,143.84,10.96880413]
[1750756217335,2.63768124,143.96,143.84,2.4049]
[1750756217533,25.83707019,143.97,143.84,2.4049]
[1750756217733,2.6374539,143.96,143.84,10.96880413]
[1750756217935,25.83707019,143.97,143.84,10.96880413]
[1750756218236,2.63742847,143.96,143.84,10.96880413]
[1750756218435,2.63742847,143.95,143.84,2.4049]
[1750756218636,2.63742847,143.96,143.84,10.96880413]
[1750756218840,25.83707019,143.97,143.84,10.96880413]
[1750756219041,2.63751825,143.96,143.84,10.96880413]
[1750756219241,2.63751825,143.95,143.84,10.96880413]
[1750756219435,2.63751825,143.96,143.84,10.96880413]
[1750756219632,2.63751825,143.95,143.84,10.96880413]
[1750756219841,2.63751825,143.96,143.84,10.96880413]
[1750756220042,2.63751825,143.95,143.84,10.96880413]
[1750756220242,2.63888618,143.94,143.84,10.96880413]
[1750756220442,25.83707019,143.95,143.83,10.90300413]
[1750756220648,2.63886227,143.94,143.83,10.90300413]
[1750756220936,20.84,143.95,143.83,10.90300413]
[1750756221141,2.63845579,143.94,143.83,10.90300413]
[1750756221341,10.18716452,143.97,143.83,2.3391]
[1750756221541,2.62908122,143.96,143.84,8.56390413]
[1750756221841,2.62908122,143.95,143.84,8.56390413]
[1750756222033,2.62908122,143.96,143.84,8.56390413]
[1750756222230,2.62908122,143.95,143.84,8.56390413]
[1750756222434,2.62908122,143.96,143.84,8.56390413]
[1750756222630,2.62908122,143.95,143.84,8.56390413]
[1750756222838,2.63006663,143.95,143.84,8.56390413]
[1750756223043,2.63006663,143.96,143.84,8.56390413]
[1750756223238,2.63006663,143.95,143.84,8.56390413]
[1750756223440,2.63002048,143.96,143.84,8.56390413]
[1750756223644,2.63002048,143.95,143.84,8.56390413]
[1750756223841,2.63002048,143.96,143.84,8.56390413]
[1750756224140,2.63002313,143.95,143.84,8.56390413]
[1750756224339,20.84,143.98,143.84,8.56390413]
[1750756224542,12.77790234,143.97,143.84,8.56390413]
[1750756224734,2.63006239,143.96,143.84,8.56390413]
[1750756224934,2.63006239,143.95,143.84,8.56390413]
[1750756225145,2.63006239,143.96,143.84,8.56390413]
[1750756225441,2.63006239,143.95,143.84,8.56390413]
[1750756225639,2.63006239,143.96,143.84,8.56390413]
[1750756225842,2.63006239,143.95,143.84,8.56390413]
[1750756226145,2.63006239,143.96,143.84,8.56390413]
[1750756226331,2.63006239,143.95,143.84,8.56390413]
[1750756226535,30.98763241,143.98,143.84,8.56390413]
[1750756226536,12.77769798,143.97,143.84,8.56390413]
[1750756226735,2.63006239,143.96,143.84,8.56390413]
[1750756226936,2.63006239,143.95,143.84,8.56390413]
[1750756227141,12.77615882,143.97,143.84,8.56390413]
[1750756227445,2.63006239,143.96,143.84,8.56390413]
[1750756227635,2.63006239,143.95,143.85,2.2054]
[1750756227837,2.63006239,143.96,143.85,10.76930413]
[1750756228238,2.63006239,143.95,143.85,2.2054]
[1750756228433,2.62680631,143.96,143.85,10.76930413]
[1750756228638,30.98604262,143.98,143.85,10.76930413]
[1750756228842,7.60199562,143.97,143.85,10.76930413]
[1750756229043,2.62674595,143.96,143.85,10.76930413]
[1750756229237,2.6269415,143.95,143.85,2.2054]
[1750756229446,30.98604262,143.97,143.85,2.2054]
[1750756229646,33.61293767,143.96,143.83,10.95040413]
[1750756229943,33.61363149,143.95,143.83,10.95040413]
[1750756230144,2.62676983,143.94,143.83,10.95040413]
[1750756230448,2.626976,143.93,143.83,2.3865]
[1750756230647,4.97567223,143.94,143.83,2.3865]
[1750756230844,2.62703548,143.93,143.83,2.3865]
[1750756231146,4.97567223,143.94,143.83,2.3865]
[1750756231342,2.62704843,143.93,143.83,2.3865]
[1750756231548,30.98830572,143.95,143.83,2.3865]
[1750756231839,12.75695259,143.94,143.83,2.3865]
[1750756232045,2.60864687,143.93,143.83,2.3865]
[1750756232249,2.60840124,143.93,143.83,2.3865]
[1750756232547,2.60840124,143.94,143.83,2.3865]
[1750756232839,2.60842486,143.94,143.83,10.95040413]
[1750756233144,2.60842486,143.95,143.84,8.56390413]
[1750756233347,30.96221094,143.96,143.84,8.56390413]
[1750756233540,2.60944478,143.95,143.84,8.56390413]
[1750756233748,10.12219801,143.97,143.84,8.56390413]
[1750756233952,12.73205861,143.96,143.84,10.78170413]
[1750756234246,2.6098606,143.95,143.84,10.78170413]
[1750756234448,2.61002524,143.94,143.84,2.2178]
[1750756234651,30.96219801,143.96,143.84,2.2178]
[1750756234847,12.73217995,143.95,143.84,2.2178]
[1750756235046,2.60998194,143.94,143.84,2.2178]
[1750756235249,2.60977868,143.93,143.84,2.2178]
[1750756235546,2.61010081,143.92,143.84,2.2178]
[1750756235751,12.72728055,143.94,143.84,2.2178]
[1750756235947,2.61010081,143.93,143.84,2.2178]
[1750756236251,2.61010081,143.92,143.84,2.2178]
[1750756236453,2.61010081,143.93,143.84,2.2178]
[1750756236652,2.61010081,143.92,143.84,2.2178]
[1750756236842,2.61010081,143.93,143.84,2.2178]
[1750756237150,2.61010081,143.92,143.84,2.2178]
[1750756237453,2.61010081,143.93,143.84,2.2178]
[1750756237651,2.61010081,143.94,143.84,2.2178]
[1750756237844,2.61010081,143.93,143.84,2.2178]
[1750756238044,2.61010081,143.94,143.84,2.2178]
[1750756238344,2.61010081,143.93,143.84,2.2178]
[1750756238546,2.60690974,143.94,143.84,2.2178]
[1750756238752,2.60690974,143.93,143.84,2.2178]
[1750756238947,2.60690974,143.94,143.84,2.2178]
[1750756239249,2.60690974,143.93,143.84,2.2178]
[1750756239453,2.60690974,143.94,143.84,2.2178]
[1750756239744,2.60690974,143.93,143.84,2.2178]
[1750756239947,2.60690974,143.94,143.83,2.3865]
[1750756240149,2.60690974,143.93,143.83,2.3865]
[1750756240543,2.60690974,143.94,143.83,2.3865]
[1750756240743,2.60690974,143.93,143.83,2.3865]
[1750756240941,2.60571984,143.94,143.83,2.3865]
[1750756241347,2.60640151,143.96,143.84,2.355]
[1750756241547,2.60640151,143.97,143.84,2.355]
[1750756241744,2.60640151,143.96,143.84,2.355]
[1750756241944,2.60640151,143.95,143.84,2.355]
[1750756242138,2.60640151,143.94,143.84,2.355]
[1750756242344,2.60640151,143.93,143.83,2.3865]
[1750756242545,2.60640151,143.94,143.83,2.3865]
[1750756242745,2.60640151,143.93,143.83,2.3865]
[1750756242952,2.60640151,143.94,143.83,2.3865]
[1750756243253,2.60640151,143.93,143.83,2.3865]
[1750756243454,2.60640151,143.94,143.83,2.3865]
[1750756243752,2.60640151,143.95,143.83,2.3865]
[1750756243954,2.60640151,143.96,143.83,2.3865]
[1750756244152,2.60455142,143.95,143.83,2.3865]
[1750756244362,2.60455142,143.96,143.83,2.3865]
[1750756244548,2.60455142,143.95,143.83,2.3865]
[1750756244747,2.60455142,143.96,143.83,2.3865]
[1750756244947,2.60455142,143.95,143.83,2.3865]
[1750756245153,2.60455142,143.96,143.83,2.3865]
[1750756245358,2.60455142,143.95,143.83,2.3865]
[1750756245562,2.60455142,143.96,143.81,8.56390413]
[1750756245853,2.60455142,143.96,143.82,2.3532]
[1750756246555,2.60455142,143.96,143.82,10.91710413]
[1750756246861,2.60455142,143.96,143.83,8.56390413]
[1750756247059,2.60696571,143.97,143.83,8.56390413]
[1750756247356,2.60696571,143.98,143.83,8.56390413]
[1750756247557,2.60696571,143.97,143.83,8.56390413]
[1750756247857,2.60696571,143.98,143.84,8.56390413]
[1750756248153,19.15008055,144.0,143.85,2.3312]
[1750756248357,7.78511289,143.99,143.85,2.3312]
[1750756248552,2.60696571,143.98,143.86,2.3851]
[1750756248856,2.60696571,143.99,143.86,2.3851]
[1750756249046,30.95099052,144.0,143.86,2.3851]
[1750756249047,2.60696571,143.98,143.86,2.3851]
[1750756249246,2.60696571,143.99,143.86,2.3851]
[1750756249445,2.60696571,144.0,143.87,8.56390413]
[1750756249649,2.60696571,144.01,143.88,10.98950413]
[1750756249955,2.60976155,144.02,143.88,10.98950413]
[1750756250157,2.60976155,144.01,143.88,10.98950413]
[1750756250457,2.60976155,144.02,143.89,8.56390413]
[1750756251160,2.60976155,144.04,143.9,8.56390413]
[1750756251357,2.60976155,144.05,143.9,8.56390413]
[1750756251560,20.84,144.06,143.9,8.56390413]
[1750756251561,2.60976155,144.04,143.91,2.4078]
[1750756251761,2.60976155,144.03,143.92,2.3342]
[1750756252358,27.27212432,144.06,143.92,2.3342]
[1750756256865,20.84,144.06,143.92,2.3342]
[1750756257057,6.43212432,144.07,143.92,2.3342]
[1750756258366,6.43212432,144.08,143.92,10.89810413]
[1750756259170,6.43212432,144.08,143.92,2.3342]
[1750756259866,6.43212432,144.08,143.92,10.89810413]
[1750756260769,6.43212432,144.08,143.92,2.3342]
[1750756260969,6.43212432,144.08,143.92,10.89810413]
[1750756261267,6.43212432,144.09,143.92,10.89810413]
[1750756261467,27.27212432,144.09,143.92,10.89810413]
[1750756263364,20.84,144.09,143.92,10.89810413]
[1750756264370,27.2661365,144.1,143.92,2.3342]
[1750756264570,146.9665121,144.09,143.92,2.3342]
[1750756265161,2.61786712,144.08,143.92,2.3342]
[1750756265363,2.61786712,144.07,143.92,2.3342]
[1750756267171,6.1603443,144.08,143.92,2.3342]
[1750756267370,13.97987963,144.08,143.92,2.3342]
[1750756267573,2.61532873,144.07,143.92,2.3342]
[1750756267871,13.965632,144.08,143.92,2.3342]
[1750756268063,2.61532873,144.07,143.92,2.3342]
[1750756268265,23.45532873,144.06,143.92,2.3342]
[1750756268475,40.01935566,144.05,143.92,2.3342]
[1750756268770,2.61532873,144.04,143.92,2.3342]
[1750756268970,2.61532873,144.03,143.92,2.3342]
[1750756269166,2.61532873,144.04,143.92,2.3342]
[1750756269364,2.61532873,144.03,143.92,2.3342]
[1750756269563,2.61532873,144.04,143.92,2.3342]
[1750756269765,2.61532873,144.03,143.92,2.3342]
[1750756270275,2.61532873,144.04,143.92,2.3342]
[1750756270473,2.61532873,144.03,143.92,2.3342]
[1750756270677,2.61532873,144.04,143.92,2.3342]
[1750756270878,2.61532873,144.03,143.92,2.3342]
[1750756271068,2.61532873,144.04,143.92,2.3342]
[1750756271574,2.61532873,144.05,143.92,2.3342]
[1750756271775,2.61532873,144.04,143.92,2.3342]
[1750756271980,2.61532873,144.05,143.92,2.3342]
[1750756272175,2.61532873,144.04,143.92,2.3342]
[1750756272775,2.61532873,144.05,143.92,2.3342]
[1750756272971,2.61532873,144.04,143.92,2.3342]
[1750756273179,2.62974042,144.03,143.92,2.3342]
[1750756273473,2.62974042,144.04,143.92,2.3342]
[1750756274770,25.81377687,144.05,143.92,2.3342]
[1750756274771,2.62974042,144.03,143.92,2.3342]
[1750756274971,2.62974042,144.04,143.92,2.3342]
[1750756276981,2.62974042,144.03,143.92,2.3342]
[1750756277277,2.62974042,144.04,143.92,2.3342]
[1750756277467,2.62974042,144.03,143.92,2.3342]
[1750756277667,2.62974042,144.04,143.92,2.3342]
[1750756277968,2.62974042,144.03,143.92,2.3342]
[1750756278171,2.62974042,144.04,143.92,2.3342]
[1750756278367,2.62974042,144.03,143.92,2.3342]
[1750756278577,2.62974042,144.04,143.92,2.3342]
[1750756278773,2.62454975,144.04,143.92,2.3342]
[1750756279184,20.84,144.05,143.92,2.3342]
[1750756279373,2.62449205,144.04,143.92,2.3342]
[1750756279576,2.62449205,144.03,143.92,2.3342]
[1750756279777,2.62449205,144.04,143.92,2.3342]
[1750756279976,2.62449205,144.05,143.92,2.3342]
[1750756280182,2.62449205,144.06,143.92,2.3342]
[1750756280383,2.62449205,144.07,143.92,2.3342]
[1750756280586,12.77902402,144.08,143.92,10.89810413]
[1750756280772,7.59694167,144.08,143.93,8.56390413]
[1750756281086,2.62449205,144.08,143.93,8.56390413]
[1750756281285,2.62449205,144.08,143.94,10.82920413]
[1750756281480,126.1265121,144.09,143.94,10.82920413]
[1750756281672,2.62471275,144.08,143.94,10.82920413]
[1750756281883,2.62471275,144.08,143.94,2.2653]
[1750756282077,2.62471275,144.08,143.94,10.82920413]
[1750756282283,126.1265121,144.09,143.94,10.82920413]
[1750756282485,2.62463136,144.08,143.94,10.82920413]
[1750756282689,126.1265121,144.09,143.94,10.82920413]
[1750756284581,126.1265121,144.09,143.96,8.56390413]
[1750756284781,126.1265121,144.09,143.97,2.202]
[1750756285088,126.1265121,144.09,143.97,10.76590413]
[1750756285289,126.1265121,144.09,143.98,2.2387]
[1750756299197,2.64140176,144.08,143.98,2.2387]
[1750756299399,2.64140176,144.07,143.98,2.2387]
[1750756299701,2.64140176,144.08,143.98,2.2387]
[1750756299896,7.64982969,144.08,143.98,2.2387]
[1750756300198,2.64054931,144.07,143.98,2.2387]
[1750756301694,12.86130388,144.08,143.98,2.2387]
[1750756302000,2.64076915,144.07,143.98,2.2387]
[1750756302602,2.64076915,144.08,143.98,2.2387]
[1750756303096,7.65047655,144.08,143.98,2.2387]
[1750756303293,2.64076915,144.08,143.98,2.2387]
[1750756305190,126.1265121,144.09,143.98,2.2387]
[1750756307699,126.1265121,144.09,143.99,8.56390413]
[1750756307899,27.2622878,144.16,143.99,8.56390413]
[1750756308095,12.85529475,144.15,144.0,2.3184]
[1750756308301,12.85529475,144.14,144.0,2.3184]
[1750756308499,28.47015979,144.16,144.0,2.3184]
[1750756308500,2.63842624,144.13,144.0,2.3184]
[1750756308702,7.64701035,144.14,144.0,2.3184]
[1750756308906,2.63842624,144.13,144.0,2.3184]
[1750756309098,7.64701035,144.14,144.0,2.3184]
[1750756309405,2.63842624,144.13,144.0,2.3184]
[1750756309604,2.63842624,144.14,144.0,2.3184]
[1750756309799,2.63842624,144.13,144.0,2.3184]
[1750756310002,2.63842624,144.14,144.0,2.3184]
[1750756310198,2.63842624,144.13,144.0,2.3184]
[1750756310398,2.63842624,144.14,144.0,2.3184]
[1750756310598,2.63842624,144.13,144.0,2.3184]
[1750756310899,8.08184409,144.14,144.0,2.3184]
[1750756311098,2.63842624,144.13,144.0,2.3184]
[1750756311305,8.08184409,144.14,144.0,2.3184]
[1750756311600,2.63842624,144.14,144.0,2.3184]
[1750756313008,2.64068719,144.14,144.0,2.3184]
[1750756314013,33.93630973,144.13,144.0,2.3184]
[1750756314202,8.08410504,144.12,144.0,2.3184]
[1750756314603,2.64068719,144.11,144.0,2.3184]
[1750756315610,2.64068719,144.1,144.0,2.3184]
[1750756315813,2.64608433,144.1,144.0,2.3184]
[1750756317602,8.08950218,144.1,144.0,2.3184]
[1750756317806,2.64608433,144.09,144.0,2.3184]
[1750756318007,2.64608433,144.08,144.0,2.3184]
[1750756318409,8.08950218,144.09,144.0,2.3184]
[1750756318612,2.64608433,144.08,144.0,2.3184]
[1750756318909,8.08950218,144.09,144.0,2.3184]
[1750756319106,2.64608433,144.08,144.0,2.3184]
[1750756319305,5.44341785,144.09,144.0,2.3184]
[1750756319518,2.65020238,144.08,144.0,2.3184]
[1750756319716,10.23405933,144.09,144.0,2.3184]
[1750756319917,2.6454305,144.08,144.0,2.3184]
[1750756320121,10.23405933,144.1,144.0,2.3184]
[1750756320328,12.88006376,144.09,144.0,2.3184]
[1750756320620,2.64600443,144.08,143.98,2.2387]
[1750756320827,7.66279994,144.07,143.95,8.61353831]
[1750756321022,2.64600443,144.06,143.95,8.61353831]
[1750756321217,10.2465215,144.08,143.95,8.61353831]
[1750756321424,12.8932726,144.07,143.95,8.61353831]
[1750756321628,2.6467511,144.06,143.95,8.61353831]
[1750756321818,2.65022331,144.05,143.95,8.61353831]
[1750756322018,5.22365461,144.08,143.95,8.61353831]
[1750756322019,10.25341812,144.07,143.95,8.61353831]
[1750756322222,12.90371066,144.06,143.95,8.61353831]
[1750756322417,2.65029254,144.05,143.95,8.61353831]
[1750756322633,10.24941536,144.08,143.95,8.61353831]
[1750756322832,12.89928009,144.07,143.95,8.61353831]
[1750756323024,12.89928009,144.06,143.95,8.61353831]
[1750756323329,5.019792,144.05,143.92,10.82623831]
[1750756323630,12.89761103,144.04,143.93,8.61353831]
[1750756323829,12.89761103,144.03,143.93,8.61353831]
[1750756324033,6.4222878,144.04,143.91,8.61353831]
[1750756324229,12.89102257,144.03,143.9,10.94493831]
[1750756324424,12.89102257,144.02,143.91,8.61353831]
[1750756324629,7.66477168,144.01,143.91,8.61353831]
[1750756324829,10.24567327,144.03,143.91,8.61353831]
[1750756325028,12.88999556,144.02,143.91,8.61353831]
[1750756325227,2.64432229,144.01,143.91,8.61353831]
[1750756325429,10.24547981,144.04,143.91,8.61353831]
[1750756325626,27.2622878,144.05,143.92,8.61353831]
[1750756325627,12.88980955,144.03,143.92,8.61353831]
[1750756325824,12.89018211,144.02,143.92,8.61353831]
[1750756326026,2.64432974,144.01,143.91,8.61353831]
[1750756326222,10.24669091,144.04,143.91,8.61353831]
[1750756326530,12.89126713,144.03,143.91,8.61353831]
[1750756326729,2.64457622,144.02,143.92,8.61353831]
[1750756327034,10.24500763,144.03,143.92,8.61353831]
[1750756327223,2.64398512,144.02,143.91,8.61353831]
[1750756327428,10.24555352,144.04,143.91,8.61353831]
[1750756327625,12.88938473,144.03,143.91,8.61353831]
[1750756327827,2.64383121,144.02,143.91,8.61353831]
[1750756328027,10.24510509,144.04,143.91,8.61353831]
[1750756328228,12.88904269,144.03,143.91,8.61353831]
[1750756328428,10.24510509,144.05,143.92,8.61353831]
[1750756328633,12.88679305,144.04,143.92,8.61353831]
[1750756328826,2.64168796,144.03,143.92,8.61353831]
[1750756329027,27.2622878,144.06,143.92,8.61353831]
[1750756329333,12.83230028,144.05,143.92,8.61353831]
[1750756329537,12.83230028,144.04,143.92,8.61353831]
[1750756329734,2.64126474,144.03,143.92,8.61353831]
[1750756329927,10.19050251,144.04,143.92,8.61353831]
[1750756330127,2.64098012,144.03,143.92,8.61353831]
[1750756330328,10.19050251,144.04,143.92,8.61353831]
[1750756330525,2.63638597,144.03,143.92,8.61353831]
[1750756330730,10.19050251,144.04,143.92,8.61353831]
[1750756330939,2.63655634,144.03,143.92,8.61353831]
[1750756331236,2.63655634,144.04,143.92,8.61353831]
[1750756331537,2.63655634,144.03,143.92,8.61353831]
[1750756331739,2.63655634,144.04,143.92,8.61353831]
[1750756332034,10.19050251,144.06,143.92,8.61353831]
[1750756332242,12.82610579,144.05,143.92,8.61353831]
[1750756332432,2.63560328,144.04,143.92,8.61353831]
[1750756332630,4.98229404,144.05,143.93,8.61353831]
[1750756332939,2.6358126,144.05,143.94,2.4179]
[1750756333129,2.63577371,144.06,143.94,11.03143831]
[1750756333329,2.63577371,144.05,143.94,11.03143831]
[1750756333542,2.63577371,144.06,143.94,11.03143831]
[1750756333837,2.63577371,144.05,143.94,11.03143831]
[1750756334137,2.63577371,144.06,143.94,11.03143831]
[1750756334327,27.2622878,144.09,143.94,11.03143831]
[1750756334328,2.63577371,144.05,143.94,11.03143831]
[1750756334528,2.63577371,144.06,143.94,11.03143831]
[1750756334728,2.63577371,144.05,143.94,11.03143831]
[1750756334926,2.63577371,144.06,143.94,11.03143831]
[1750756335123,10.19050251,144.07,143.94,11.03143831]
[1750756335324,2.63827525,144.06,143.94,11.03143831]
[1750756335630,10.19000612,144.07,143.94,11.03143831]
[1750756335828,2.63828685,144.06,143.94,11.03143831]
[1750756336038,2.63828685,144.05,143.94,11.03143831]
[1750756336237,4.98179765,144.06,143.94,11.03143831]
[1750756336437,2.63803541,144.05,143.94,11.03143831]
[1750756336637,2.63803541,144.06,143.94,11.03143831]
[1750756336932,2.63743688,144.05,143.94,11.03143831]
[1750756337138,2.63752733,144.06,143.95,10.99643831]
[1750756337341,2.63752733,144.07,143.96,2.3306]
[1750756337538,10.19000612,144.08,143.96,2.3306]
[1750756337735,2.6375627,144.07,143.96,10.94413831]
[1750756337931,2.6375627,144.08,143.96,10.94413831]
[1750756338239,30.01325784,144.26,143.97,8.61353831]
[1750756338240,10.19000612,144.1,143.97,8.61353831]